[Event "Reykjavik Open 2025"]
[Site "Reykjavik"]
[Date "2025.04.11"]
[Round "4.7"]
[White "Hagner, Bennet"]
[Black "Maze, Sebastien"]
[Result "1-0"]
[Annotator "ChessBase"]
[ECO "A49"]
[WhiteElo "2430"]
[BlackElo "2557"]
[PlyCount "99"]
[EventDate "2025.04.09"]
[EventType "swiss"]
[EventCountry "ISL"]
[SourceTitle "playchess.com"]
[Source "ChessBase"]
[SourceQuality "1"]
[TimeControl "40/5400+30:1800+30"]

1. Nf3 {[%emt 0:00:02]} Nf6 {[%emt 0:00:10]} 2. b3 {[%emt 0:00:12]} d6 {[%emt 0:01:00]} 3. d4 {[%emt 0:01:33]} g6 {[%emt 0:00:08]} 4. Bb2 {[%emt 0:00:16]} Bg7 {[%emt 0:00:04]} 5. g3 {[%emt 0:01:08]} c5 {[%emt 0:03:58]} 6. Bg2 {[%emt 0:00:52]} cxd4 {[%emt 0:01:09]} 7. Nxd4 {[%emt 0:00:09]} d5 {[%emt 0:01:07]} 8. c4 {[%emt 0:00:29]} O-O {[%emt 0:03:09]} 9. cxd5 {[%emt 0:01:25]} Nxd5 {[%emt 0:00:06]} 10. O-O {[%emt 0:00:16]} Qa5 {[%emt 0:10:41]} 11. Qd2 {[%emt 0:18:38]} Qxd2 {[%emt 0:00:27]} 12. Nxd2 {[%emt 0:00:02]} Rd8 {[%emt 0:00:32]} 13. Nc4 {[%emt 0:03:41]} Bxd4 {[%emt 0:06:32]} 14. Bxd4 {[%emt 0:00:46]} Nc6 {[%emt 0:00:02]} 15. Bb2 {[%emt 0:06:56]} Be6 {[%emt 0:09:21]} 16. Rac1 {[%emt 0:03:01]} Rac8 {[%emt 0:02:05]} 17. Rfd1 {[%emt 0:05:00]} f6 {[%emt 0:02:55]} 18. Ba3 {[%emt 0:17:48]} Ndb4 {[%emt 0:09:49]} 19. Na5 {[%emt 0:06:16]} Nxa2 {[%emt 0:08:51]} 20. Nxc6 {[%emt 0:10:43]} bxc6 {[%emt 0:00:02]} 21. Rxd8+ {[%emt 0:08:21]} Rxd8 {[%emt 0:00:15]} 22. Ra1 {[%emt 0:00:10]} Kf8 {[%emt 0:10:28]} 23. Bxc6 {[%emt 0:00:24]} Bxb3 {[%emt 0:00:06]} 24. Ba4 {[%emt 0:07:25]} Bxa4 {[%emt 0:01:57]} 25. Rxa2 {[%emt 0:00:02]} Bb5 {[%emt 0:00:44]} 26. Bb4 {[%emt 0:01:57]} Rd7 {[%emt 0:00:29]} 27. f3 {[%emt 0:00:17]} Rc7 {[%emt 0:01:15]} 28. Kf2 {[%emt 0:00:25]} a6 {[%emt 0:00:08]} 29. h4 {[%emt 0:02:31]} Rc4 {[%emt 0:01:03]} 30. Rb2 {[%emt 0:00:06]} Kf7 {[%emt 0:00:34]} 31. Ke3 {[%emt 0:00:38]} e5 {[%emt 0:00:17]} 32. Kf2 {[%emt 0:01:17]} f5 {[%emt 0:00:31]} 33. Ba3 {[%emt 0:01:11]} e4 {[%emt 0:02:05]} 34. fxe4 {[%emt 0:00:06]} Rxe4 {[%emt 0:00:16]} 35. Bd6 {[%emt 0:00:14]} Ke6 {[%emt 0:00:49]} 36. Bf4 {[%emt 0:00:12]} Kd5 {[%emt 0:00:25]} 37. Rd2+ {[%emt 0:01:02]} Kc4 {[%emt 0:00:47]} 38. Bc7 {[%emt 0:01:42]} Kb4 {[%emt 0:01:13]} 39. e3 {[%emt 0:01:35]} Rc4 {[%emt 0:04:25]} 40. Bd8 {[%emt 0:00:33]} Bc6 {[%emt 0:01:08]} 41. Rb2+ {[%emt 0:02:18]} Kc3 {[%emt 0:02:26]} 42. Bf6+ {[%emt 0:05:35]} Kd3 {[%emt 0:00:23]} 43. Rb3+ {[%emt 0:00:07]} Kd2 {[%emt 0:03:26]} 44. Rb2+ {[%emt 0:05:00]} Kc1 {[%emt 0:00:14]} 45. Ra2 {[%emt 0:00:19]} Bb5 {[%emt 0:03:24]} 46. Kf3 {[%emt 0:01:33]} Bc6+ {[%emt 0:04:31]} 47. Kf2 {[%emt 0:01:46]} Bb7 {[%emt 0:00:40]} 48. Ke2 {[%emt 0:00:57]} Bc8 {[%emt 0:03:31]} 49. Kd3 {[%emt 0:01:32]} Kd1 {[%emt 0:01:33]} 50. Rh2 {[%emt 0:00:42]} 1-0

[Event "Reykjavik Open 2025"]
[Site "Reykjavik"]
[Date "2025.04.11"]
[Round "4.8"]
[White "Adhiban, B.."]
[Black "Lu, Miaoyi"]
[Result "1-0"]
[Annotator "ChessBase"]
[ECO "D40"]
[WhiteElo "2554"]
[BlackElo "2429"]
[PlyCount "71"]
[EventDate "2025.04.09"]
[EventType "swiss"]
[EventCountry "ISL"]
[SourceTitle "playchess.com"]
[Source "ChessBase"]
[SourceQuality "1"]
[TimeControl "40/5400+30:1800+30"]

1. c4 {[%emt 0:00:05]} e6 {[%emt 0:02:02]} 2. Nc3 {[%emt 0:00:09]} d5 {[%emt 0:02:44]} 3. d4 {[%emt 0:00:05]} c5 {[%emt 0:00:06]} 4. e3 {[%emt 0:00:07]} Nf6 {[%emt 0:00:10]} 5. Nf3 {[%emt 0:00:11]} Nc6 {[%emt 0:00:03]} 6. a3 {[%emt 0:00:28]} dxc4 {[%emt 0:00:05]} 7. Bxc4 {[%emt 0:00:03]} a6 {[%emt 0:00:04]} 8. Bd3 {[%emt 0:00:02]} b5 {[%emt 0:01:39]} 9. dxc5 {[%emt 0:01:23]} Bxc5 {[%emt 0:00:07]} 10. b4 {[%emt 0:01:32]} Be7 {[%emt 0:02:28]} 11. Bb2 {[%emt 0:00:59]} Ra7 {[%emt 0:06:46]} 12. Qe2 {[%emt 0:04:11]} Rd7 {[%emt 0:01:44]} 13. Rd1 {[%emt 0:00:14]} Bb7 {[%emt 0:06:42]} 14. O-O {[%emt 0:00:16]} Qa8 {[%emt 0:07:12]} 15. Ne4 {[%emt 0:05:43]} Nxe4 {[%emt 0:02:42]} 16. Bxe4 {[%emt 0:02:29]} Rxd1 {[%emt 0:00:09]} 17. Rxd1 {[%emt 0:30:26]} Nd4 {[%emt 0:22:19]} 18. Nxd4 {[%emt 0:00:10]} Bxe4 {[%emt 0:00:02]} 19. Qg4 {[%emt 0:00:07]} Bg6 {[%emt 0:00:12]} 20. Nxe6 {[%emt 0:01:02]} fxe6 {[%emt 0:00:52]} 21. Qxe6 {[%emt 0:00:21]} Bf7 {[%emt 0:08:33]} 22. Qd7+ {[%emt 0:00:20]} Kf8 {[%emt 0:00:04]} 23. Rc1 {[%emt 0:00:46]} Bc4 {[%emt 0:00:33]} 24. Bxg7+ {[%emt 0:00:13]} Kxg7 {[%emt 0:06:47]} 25. Qxe7+ {[%emt 0:00:04]} Bf7 {[%emt 0:07:07]} 26. Qg5+ {[%emt 0:24:05]} Kf8 {[%emt 0:00:03]} 27. Qf5 {[%emt 0:06:11]} Kg7 {[%emt 0:00:54]} 28. Qg4+ {[%emt 0:01:23]} Kh6 {[%emt 0:07:09]} 29. Qf4+ {[%emt 0:01:04]} Kg6 {[%emt 0:02:52]} 30. h4 {[%emt 0:02:01]} h6 {[%emt 0:03:18]} 31. h5+ {[%emt 0:00:52]} Kg7 {[%emt 0:00:03]} 32. Qg4+ {[%emt 0:00:06]} Kf6 {[%emt 0:00:16]} 33. Qd4+ {[%emt 0:00:15]} Ke6 {[%emt 0:00:29]} 34. Rc5 {[%emt 0:00:53]} Qb8 {[%emt 0:01:48]} 35. Rc6+ {[%emt 0:01:00]} Ke7 {[%emt 0:00:07]} 36. Rb6 {[%emt 0:00:29]} 1-0

[Event "Reykjavik Open 2025"]
[Site "Reykjavik"]
[Date "2025.04.11"]
[Round "4.9"]
[White "Stefansson, Hannes"]
[Black "Friedel, Joshua"]
[Result "1-0"]
[Annotator "ChessBase"]
[ECO "B12"]
[WhiteElo "2420"]
[BlackElo "2552"]
[PlyCount "73"]
[EventDate "2025.04.09"]
[EventType "swiss"]
[EventCountry "ISL"]
[SourceTitle "playchess.com"]
[Source "ChessBase"]
[SourceQuality "1"]
[TimeControl "40/5400+30:1800+30"]

1. e4 {[%emt 0:00:07]} c6 {[%emt 0:00:13]} 2. d4 {[%emt 0:01:07]} d5 {[%emt 0:00:07]} 3. e5 {[%emt 0:00:52]} Bf5 {[%emt 0:00:13]} 4. h4 {[%emt 0:02:10]} a6 {[%emt 0:00:41]} 5. a3 {[%emt 0:06:13]} Qc7 {[%emt 0:14:25]} 6. c4 {[%emt 0:15:35]} dxc4 {[%emt 0:10:07]} 7. Bxc4 {[%emt 0:00:16]} e6 {[%emt 0:00:56]} 8. Nc3 {[%emt 0:01:40]} h6 {[%emt 0:04:34]} 9. Nge2 {[%emt 0:02:30]} Ne7 {[%emt 0:03:21]} 10. Ng3 {[%emt 0:04:40]} Nd7 {[%emt 0:12:58]} 11. Nce4 {[%emt 0:02:42]} Bxe4 {[%emt 0:01:13]} 12. Nxe4 {[%emt 0:00:06]} Nd5 {[%emt 0:00:33]} 13. Bd2 {[%emt 0:06:35]} Qb6 {[%emt 0:03:38]} 14. Bc3 {[%emt 0:02:49]} Be7 {[%emt 0:02:04]} 15. Qg4 {[%emt 0:02:59]} Rg8 {[%emt 0:02:38]} 16. O-O {[%emt 0:06:43]} O-O-O {[%emt 0:02:05]} 17. a4 {[%emt 0:08:59]} Kb8 {[%emt 0:17:21]} 18. a5 {[%emt 0:03:24]} Qc7 {[%emt 0:00:07]} 19. g3 {[%emt 0:03:07]} Nf8 {[%emt 0:04:36]} 20. Bd2 {[%emt 0:05:24]} g5 {[%emt 0:05:49]} 21. h5 {[%emt 0:01:39]} Nh7 {[%emt 0:02:41]} 22. Rfe1 {[%emt 0:03:16]} Qd7 {[%emt 0:01:40]} 23. Qe2 {[%emt 0:02:38]} f5 {[%emt 0:03:49]} 24. exf6 {[%emt 0:00:26]} Nhxf6 {[%emt 0:00:06]} 25. Nc3 {[%emt 0:05:20]} Nc7 {[%emt 0:04:09]} 26. Bxe6 {[%emt 0:00:28]} Nxe6 {[%emt 0:00:03]} 27. Qxe6 {[%emt 0:00:09]} Qxe6 {[%emt 0:00:08]} 28. Rxe6 {[%emt 0:00:05]} Rxd4 {[%emt 0:00:19]} 29. Be3 {[%emt 0:03:40]} Rd7 {[%emt 0:00:05]} 30. Re1 {[%emt 0:01:51]} Bd8 {[%emt 0:02:46]} 31. Bb6 {[%emt 0:00:12]} Rf7 {[%emt 0:01:39]} 32. Ne4 {[%emt 0:00:22]} Bxb6 {[%emt 0:00:48]} 33. Nxf6 {[%emt 0:02:16]} Bxa5 {[%emt 0:00:19]} 34. Nxg8 {[%emt 0:00:24]} Bxe1 {[%emt 0:00:04]} 35. Rxe1 {[%emt 0:00:07]} a5 {[%emt 0:00:19]} 36. Nxh6 {[%emt 0:00:37]} Rh7 {[%emt 0:00:17]} 37. Re6 {[%emt 0:00:12]} 1-0

[Event "Reykjavik Open 2025"]
[Site "Reykjavik"]
[Date "2025.04.11"]
[Round "4.10"]
[White "Amar, Elham"]
[Black "Song, Yuxin"]
[Result "1/2-1/2"]
[Annotator "ChessBase"]
[ECO "B95"]
[WhiteElo "2546"]
[BlackElo "2371"]
[PlyCount "70"]
[EventDate "2025.04.09"]
[EventType "swiss"]
[EventCountry "ISL"]
[SourceTitle "playchess.com"]
[Source "ChessBase"]
[SourceQuality "1"]
[TimeControl "40/5400+30:1800+30"]

1. e4 {[%emt 0:00:03]} c5 {[%emt 0:00:04]} 2. Nf3 {[%emt 0:00:19]} d6 {[%emt 0:00:04]} 3. d4 {[%emt 0:00:10]} cxd4 {[%emt 0:00:04]} 4. Nxd4 {[%emt 0:00:07]} Nf6 {[%emt 0:00:04]} 5. Nc3 {[%emt 0:00:07]} a6 {[%emt 0:00:04]} 6. Bg5 {[%emt 0:00:20]} e6 {[%emt 0:00:08]} 7. Qf3 {[%emt 0:00:24]} Nbd7 {[%emt 0:00:14]} 8. O-O-O {[%emt 0:00:32]} Qc7 {[%emt 0:00:06]} 9. Kb1 {[%emt 0:00:26]} Be7 {[%emt 0:04:01]} 10. g4 {[%emt 0:02:27]} h6 {[%emt 0:17:11]} 11. Bxf6 {[%emt 0:02:58]} Bxf6 {[%emt 0:04:13]} 12. h4 {[%emt 0:01:42]} Ne5 {[%emt 0:08:02]} 13. Qg3 {[%emt 0:05:30]} Bd7 {[%emt 0:01:15]} 14. Be2 {[%emt 0:16:58]} Ng6 {[%emt 0:03:14]} 15. f4 {[%emt 0:08:42]} Nxf4 {[%emt 0:16:41]} 16. Qxf4 {[%emt 0:01:16]} Bxd4 {[%emt 0:00:06]} 17. Nd5 {[%emt 0:09:39]} exd5 {[%emt 0:04:44]} 18. Rxd4 {[%emt 0:00:08]} dxe4 {[%emt 0:00:15]} 19. Qxe4+ {[%emt 0:01:19]} Be6 {[%emt 0:00:48]} 20. Bc4 {[%emt 0:01:20]} Qe7 {[%emt 0:05:28]} 21. Re1 {[%emt 0:02:30]} O-O-O {[%emt 0:01:24]} 22. Bxe6+ {[%emt 0:02:18]} fxe6 {[%emt 0:00:36]} 23. Qxe6+ {[%emt 0:00:16]} Qxe6 {[%emt 0:00:53]} 24. Rxe6 {[%emt 0:00:06]} Rhe8 {[%emt 0:00:32]} 25. Rde4 {[%emt 0:03:57]} Kd7 {[%emt 0:04:49]} 26. Rxe8 {[%emt 0:00:36]} Rxe8 {[%emt 0:00:04]} 27. Rxe8 {[%emt 0:00:11]} Kxe8 {[%emt 0:00:04]} 28. Kc1 {[%emt 0:00:28]} Kf7 {[%emt 0:06:05]} 29. Kd2 {[%emt 0:00:04]} Kf6 {[%emt 0:02:05]} 30. Ke3 {[%emt 0:00:08]} g5 {[%emt 0:02:06]} 31. hxg5+ {[%emt 0:00:34]} Kxg5 {[%emt 0:00:04]} 32. Kf3 {[%emt 0:00:04]} b5 {[%emt 0:00:27]} 33. b4 {[%emt 0:03:18]} d5 {[%emt 0:06:49]} 34. c3 {[%emt 0:00:20]} Kf6 {[%emt 0:00:29]} 35. Kf4 {[%emt 0:01:59]} Ke6 {[%emt 0:00:05]} 1/2-1/2

[Event "Reykjavik Open 2025"]
[Site "Reykjavik"]
[Date "2025.04.11"]
[Round "4.11"]
[White "Yankelevich, Lev"]
[Black "Sokolovsky, Yahli"]
[Result "1/2-1/2"]
[Annotator "ChessBase"]
[ECO "E92"]
[WhiteElo "2413"]
[BlackElo "2546"]
[PlyCount "24"]
[EventDate "2025.04.09"]
[EventType "swiss"]
[EventCountry "ISL"]
[SourceTitle "playchess.com"]
[Source "ChessBase"]
[SourceQuality "1"]
[TimeControl "40/5400+30:1800+30"]

1. d4 {[%emt 0:03:14]} Nf6 {[%emt 0:00:03]} 2. c4 {[%emt 0:00:21]} g6 {[%emt 0:00:06]} 3. Nc3 {[%emt 0:00:06]} Bg7 {[%emt 0:00:04]} 4. e4 {[%emt 0:00:04]} d6 {[%emt 0:00:05]} 5. Be2 {[%emt 0:00:04]} O-O {[%emt 0:00:16]} 6. Nf3 {[%emt 0:00:17]} e5 {[%emt 0:00:12]} 7. Be3 {[%emt 0:00:56]} exd4 {[%emt 0:05:24]} 8. Nxd4 {[%emt 0:01:45]} Re8 {[%emt 0:00:04]} 9. f3 {[%emt 0:00:10]} c6 {[%emt 0:00:07]} 10. Qd2 {[%emt 0:00:30]} a6 {[%emt 0:08:13]} 11. O-O {[%emt 0:07:11]} b5 {[%emt 0:00:31]} 12. a3 {[%emt 0:06:39]} Qe7 {[%emt 0:11:11]} 1/2-1/2

[Event "Reykjavik Open 2025"]
[Site "Reykjavik"]
[Date "2025.04.11"]
[Round "4.12"]
[White "Stefansson, Vignir Vatnar"]
[Black "Bekker, Stefan"]
[Result "0-1"]
[Annotator "TA"]
[ECO "B22"]
[WhiteElo "2536"]
[BlackElo "2358"]
[PlyCount "138"]
[EventDate "2025.04.09"]
[EventType "swiss"]
[EventCountry "ISL"]
[SourceTitle "playchess.com"]
[Source "ChessBase"]
[SourceQuality "1"]
[TimeControl "40/5400+30:1800+30"]

{[%evp 17,138,34,54,0,-8,-3,0,-10,-2,-35,-9,-29,-26,-132,-135,-97,-137,-95,-87,-140,-72,-87,-68,-78,-40,-77,-70,-77,-58,-85,-67,-83,-108,-238,-148,-164,-169,-156,-161,-173,-163,-169,-131,-216,-110,-112,-115,-247,-187,-174,-147,-175,-154,-634,-109,-298,-263,-252,-253,-431,-446,-439,-445,-437,-442,-671,-490,-620,-462,-462,-453,-422,-422,-4710,-4662,-5695,-911,-29967,-29968,-29969,-29970,-29970,-29971,-29971,-29972,-29971,-29972,-29972,-29974,-29974,-29974,-29974,-29975,-29974,-29972,-29972,-29974,-29974,-29975,-29974,-29976,-29971,-29971,-29968,-29970,-29976,-29971,-29976,-29978,-29978,-29979,-29979,-29980,-29982,-29983,-29992,-29988,-29995,-29990,-29990,-29991,-29993,-29983]} 1. e4 {[%emt 0:00:01]} c5 {[%emt 0:00:06]} 2. c3 {[%emt 0:01:58]} d5 {[%emt 0:00:06]} 3. exd5 {[%emt 0:00:05]} Qxd5 {[%emt 0:00:06]} 4. d4 {[%emt 0:00:10]} Nf6 {[%emt 0:00:05]} 5. Nf3 {[%emt 0:00:36]} e6 {[%emt 0:00:06]} 6. Bd3 {[%emt 0:04:56]} Be7 {[%emt 0:12:57]} 7. O-O {[%emt 0:00:51]} O-O {[%emt 0:01:43]} 8. c4 {[%emt 0:25:12]} Qd8 {[%emt 0:00:48]} 9. dxc5 {[%emt 0:00:22]} Na6 {[%emt 0:09:44] [#]} 10. c6 {[%emt 0:04:36] B22: Sicilian: 2 c3.} Nb4 $11 {[%emt 0:05:58] Black sacrificed a pawn} 11. cxb7 {[%emt 0:05:36]} Bxb7 {[%emt 0:00:27]} 12. Be2 {[%emt 0:00:12] The position is equal.} Qc7 {[%emt 0:00:24]} 13. h3 $146 {[%emt 0:19:34]} (13. a3 Rfd8 14. Qb3 Ng4 15. g3 Na6 16. Nc3 Nc5 17. Qc2 Qc6 18. Bf4 Rd3 19. Nd5 exd5 20. Bxd3 Nxd3 21. Qxd3 dxc4 {0-1 Rennhack,P (1820)-Koch,M (2154) Frankfurt-chA 2012 (3)}) 13... Rfd8 {[%emt 0:17:18]} 14. Qb3 {[%emt 0:00:35]} Be4 $36 {[%emt 0:01:09][%mdl 2048] Black has good play.} 15. Ne1 {[%emt 0:04:56] Prevents Nc2} (15. Nc3 $11) 15... Rab8 {[%emt 0:01:18][%cal Ob4d3] Black has strong rooks and is better Black is much more active.} 16. Qe3 {[%emt 0:00:06]} Bxb1 {[%emt 0:05:11]} 17. Rxb1 {[%emt 0:00:42]} Nxa2 {[%emt 0:00:05]} 18. Nc2 {[%emt 0:04:13]} ({White should play} 18. Nf3) 18... Bd6 {[%emt 0:02:40]} (18... Bc5 $142 19. Qf4 e5) 19. Qf3 {[%emt 0:01:55]} Nxc1 {[%emt 0:08:11]} 20. Rfxc1 {[%emt 0:00:17]} a5 {[%emt 0:00:06]} 21. Rd1 {[%emt 0:02:04]} Bc5 {[%emt 0:00:44]} 22. b3 {[%emt 0:01:08]} Qe5 {[%emt 0:00:53]} (22... Rxd1+ {simplifies} 23. Rxd1 Qb6 24. Rb1 h6) 23. Bd3 {[%emt 0:01:30] Wards off Ne4} h5 {[%emt 0:02:06] White is weak on the dark squares} 24. Re1 {[%emt 0:02:01]} Qg5 {[%emt 0:03:56]} 25. Ra1 {[%emt 0:03:15] [#]} (25. Rf1 $17) 25... Bxf2+ $1 {[%emt 0:07:13][%mdl 512]} 26. Kxf2 {[%emt 0:04:20]} Qd2+ {[%emt 0:00:07]} (26... Rxb3 27. Red1 $16 (27. Bh7+ $2 Kxh7 28. Qxb3 Rd2+ 29. Re2 Ne4+ 30. Kg1 Rxe2 $19)) 27. Re2 {[%emt 0:00:01]} Qxd3 {[%emt 0:00:09][%csl Ob3] Black attacks a weakness} 28. Ra3 {[%emt 0:00:09]} Qd6 {[%emt 0:03:18]} 29. Qe3 {[%emt 0:00:41]} h4 {[%emt 0:01:27]} 30. Qe5 {[%emt 0:02:29] Repels Nh5} (30. Rxa5 $17 {was worth a try.} Ne4+ 31. Qxe4 Qb6+ (31... Rxb3 $2 32. Rg5 $18) 32. Nd4 Rxd4 (32... Qxa5 $2 33. Nc6 $19) (32... Qxd4+ 33. Qxd4 Rxd4 34. Ke3 $11) 33. Qe3) 30... Qd3 {[%emt 0:03:31]} ({Black should try} 30... Qb6+ $19 31. Kf1 Rd3 32. Rxa5 Rxb3 (32... Qxb3 $2 33. Ne1 $19)) 31. Ne1 $17 {[%emt 0:00:23]} Qb1 {[%emt 0:01:17]} 32. Qe3 {[%emt 0:04:21]} (32. Re3 $17) 32... Rd1 {[%emt 0:02:38][%cal Od1e1]} 33. Rxa5 {[%emt 0:03:29]} Rxb3 {[%emt 0:02:20]} (33... Qxb3 34. Qxb3 Rxb3 35. Ra8+ Kh7 36. Nf3 $15) 34. Qf4 {[%emt 0:00:02]} Rb8 {[%emt 0:01:04] Prevents Ra8.} 35. Rg5 $2 {[%emt 0:00:41]} (35. Kf1 $17) 35... Kf8 $2 {[%emt 0:02:11]} (35... Rb2 $1 $19 {[%cal Rb2e2] has better winning chances. ( -> ...Rxe2+)} 36. Rxb2 Qxb2+ 37. Kf1 Qc3 38. Qb8+ Kh7) 36. Qe5 {[%emt 0:01:54]} (36. Qxh4 $17 g6 37. Qh8+ Ke7 38. Qh4) 36... Rc8 {[%emt 0:00:36]} 37. Qf4 {[%emt 0:01:44]} Qc1 {[%emt 0:01:25]} 38. Qxh4 {[%emt 0:01:47]} (38. Qxc1 Rxc1 39. Ra5) 38... Rxc4 $19 {[%emt 0:00:36]} ({Less strong is} 38... Qxc4 39. Qxc4 Rxc4 40. Rge5 $17) 39. Qh8+ {[%emt 0:00:03]} Ke7 {[%emt 0:00:27] ( -> ...Rxe1)} 40. Rge5 {[%emt 0:01:21]} Qf4+ {[%emt 0:01:15]} 41. Kg1 {[%emt 0:29:30]} (41. Nf3 $142 Rcc1 42. Rxe6+ fxe6 43. Qxg7+ Kd8 44. Qf8+ Kc7 45. Qf7+ Rd7 46. Qxe6) 41... Ne4 {[%emt 0:32:58] ( -> ...Rxe1+)} 42. Qxg7 {[%emt 0:00:00] [#]} Rxe1+ $1 {[%emt 0:00:00][%mdl 512]} 43. Rxe1 {[%emt 0:00:00][%cal Oe5e4] Hoping for R5xe4!.} Qf2+ {[%emt 0:00:00]} 44. Kh2 {[%emt 0:00:00]} Qxe1 {[%emt 0:00:00]} 45. Qg4 {[%emt 0:00:00]} (45. Rb5 $142 Qc1 46. Qe5) 45... Qe3 {[%emt 0:00:00] ...Kd6 is the strong threat.} 46. h4 {[%emt 0:00:00]} f5 {[%emt 0:00:00]} 47. Rxe6+ {[%emt 0:00:00]} Kxe6 {[%emt 0:00:00] Black mates.} 48. Qg8+ {[%emt 0:00:00]} Ke5 {[%emt 0:00:00]} 49. Qxc4 {[%emt 0:00:00]} Qg3+ {[%emt 0:00:00]} 50. Kg1 {[%emt 0:00:00]} Qe1+ {[%emt 0:00:00]} 51. Kh2 {[%emt 0:00:00]} Qxh4+ {[%emt 0:00:00]} 52. Kg1 {[%emt 0:00:00]} Qf2+ {[%emt 0:00:00]} 53. Kh2 {[%emt 0:00:00]} Qg3+ {[%emt 0:00:00]} 54. Kg1 {[%emt 0:00:00]} Qe3+ {[%emt 0:00:00]} 55. Kh2 {[%emt 0:00:00]} Qh6+ {[%emt 0:00:00]} 56. Kg1 {[%emt 0:00:00]} Qb6+ {[%emt 0:00:00]} 57. Kh2 {[%emt 0:00:00]} Qd6 {[%emt 0:00:00]} 58. Qf7 {[%emt 0:00:00]} Nf6 {[%emt 0:00:00]} 59. Kh3 {[%emt 0:00:00]} Qd3+ {[%emt 0:00:31]} 60. g3 {[%emt 0:00:00]} Qd7 {[%emt 0:02:50]} 61. Qa2 {[%emt 0:00:00]} Qd5 {[%emt 0:00:53]} 62. Qb1 {[%emt 0:00:00]} Ke6 {[%emt 0:00:15]} 63. Qe1+ {[%emt 0:00:00]} Kf7 {[%emt 0:00:06]} 64. Qa1 {[%emt 0:00:00]} Kg6 {[%emt 0:00:06]} 65. Qc1 {[%emt 0:00:00]} Qf3 {[%emt 0:00:39]} 66. Qb1 {[%emt 0:00:00]} Ne4 {[%emt 0:01:15][%csl Ge4][%cal Rf3g3]} 67. Qg1 {[%emt 0:00:00]} Ng5+ {[%emt 0:00:57]} 68. Kh2 {[%emt 0:00:00]} Qe2+ {[%emt 0:00:10]} 69. Kh1 {[%emt 0:00:00]} Qe4+ {[%emt 0:00:03] Weighted Error Value: White=0.79/Black=0.50  Loses game:     	White=2     	---        Missed win:     	---       	Black=1      Mistake:       	White=8     	Black=2      Inaccurate:     	White=3     	Black=3      OK:         	White=10    	Black=10     Best:        	White=4     	Black=4} 0-1

[Event "Reykjavik Open 2025"]
[Site "Reykjavik"]
[Date "2025.04.11"]
[Round "4.13"]
[White "Zierk, Steven"]
[Black "Li, Guohao"]
[Result "1/2-1/2"]
[Annotator "ChessBase"]
[ECO "B55"]
[WhiteElo "2501"]
[BlackElo "2356"]
[PlyCount "78"]
[EventDate "2025.04.09"]
[EventType "swiss"]
[EventCountry "ISL"]
[SourceTitle "playchess.com"]
[Source "ChessBase"]
[SourceQuality "1"]
[TimeControl "40/5400+30:1800+30"]

1. e4 {[%emt 0:00:03]} c5 {[%emt 0:00:07]} 2. Nf3 {[%emt 0:00:05]} d6 {[%emt 0:00:10]} 3. d4 {[%emt 0:00:07]} cxd4 {[%emt 0:00:07]} 4. Nxd4 {[%emt 0:00:06]} Nf6 {[%emt 0:00:16]} 5. f3 {[%emt 0:00:05]} e5 {[%emt 0:00:29]} 6. Nb3 {[%emt 0:00:07]} a5 {[%emt 0:01:04]} 7. Nc3 {[%emt 0:13:22]} Be6 {[%emt 0:05:13]} 8. Bb5+ {[%emt 0:03:09]} Nbd7 {[%emt 0:01:06]} 9. Be3 {[%emt 0:02:38]} Be7 {[%emt 0:00:54]} 10. Qe2 {[%emt 0:04:18]} O-O {[%emt 0:03:48]} 11. O-O-O {[%emt 0:02:46]} Qc7 {[%emt 0:06:05]} 12. Qf2 {[%emt 0:16:09]} Bc4 {[%emt 0:06:25]} 13. Bxc4 {[%emt 0:04:45]} Qxc4 {[%emt 0:01:05]} 14. g4 {[%emt 0:01:31]} Rfc8 {[%emt 0:08:35]} 15. g5 {[%emt 0:03:38]} Nh5 {[%emt 0:00:46]} 16. Nd5 {[%emt 0:02:33]} Bf8 {[%emt 0:00:26]} 17. Kb1 {[%emt 0:01:34]} b5 {[%emt 0:04:20]} 18. Rd3 {[%emt 0:10:33]} b4 {[%emt 0:02:17]} 19. Rc1 {[%emt 0:00:56]} a4 {[%emt 0:07:24]} 20. Nd2 {[%emt 0:00:19]} Qb5 {[%emt 0:00:12]} 21. c4 {[%emt 0:01:02]} Qb7 {[%emt 0:06:06]} 22. Nf1 {[%emt 0:02:42]} Rc6 {[%emt 0:06:44]} 23. Qd2 {[%emt 0:05:33]} Rb8 {[%emt 0:11:17]} 24. Ng3 {[%emt 0:05:44]} Nf4 {[%emt 0:03:22]} 25. Nxf4 {[%emt 0:01:09]} exf4 {[%emt 0:00:09]} 26. Bxf4 {[%emt 0:00:05]} Qa6 {[%emt 0:00:37]} 27. Nf5 {[%emt 0:12:08]} b3 {[%emt 0:06:24]} 28. a3 {[%emt 0:02:51]} Rxc4 {[%emt 0:00:28]} 29. Rxc4 {[%emt 0:00:22]} Qxc4 {[%emt 0:00:03]} 30. Bxd6 {[%emt 0:03:28]} Bxd6 {[%emt 0:06:58]} 31. Rxd6 {[%emt 0:00:29]} Nf8 {[%emt 0:00:17]} 32. Qd3 {[%emt 0:01:26]} Qc5 {[%emt 0:00:28]} 33. Rd4 {[%emt 0:00:45]} Ne6 {[%emt 0:01:42]} 34. Qc4 {[%emt 0:00:28]} Qb6 {[%emt 0:00:45]} 35. Rd1 {[%emt 0:00:30]} Qf2 {[%emt 0:01:12]} 36. Rc1 {[%emt 0:00:24]} Rd8 {[%emt 0:00:45]} 37. Qxa4 {[%emt 0:00:37]} Qxf3 {[%emt 0:00:43]} 38. Qc4 {[%emt 0:00:31]} Nxg5 {[%emt 0:01:00]} 39. Ng3 {[%emt 0:00:31]} h5 {[%emt 0:02:08]} 1/2-1/2